{"text_format":"1","workbook":"xlsx","n_sheets":1,"sheets":["CATÁLOGO DOPI (2)"],"not_rendered":{"charts":0,"images":2,"macros":1,"external_links":2,"defined_names":135,"comments":0,"pivot_tables":0},"unopened":[],"bounds":{"document_bytes":16777216,"sheet_cells":100000,"rows_first":2000,"rows_last":500,"rows_between":2000,"halvings":0,"cell_chars":16384,"cell_head_chars":4096},"cells_cut":0,"cells_raw":0,"read":"whole","date_system":"1900"}

{"sheet":"CATÁLOGO DOPI (2)","index":0,"n_rows":247,"n_cols":8,"rows_kept":247,"cut":false,"hidden":false,"merged":[[1,3,1,6],[2,3,5,6],[7,2,9,2],[10,3,10,6],[11,2,12,2],[11,3,12,6],[11,7,12,7],[14,1,14,7],[17,0,17,7],[244,1,244,2],[245,1,246,4]]}
[]
[null,null,"MUNICIPIO DE ZAPOPAN, JALISCO","LICITACIÓN PÚBLICA No."]
[null,null,"DIRECCIÓN DE CONSERVACION DE INMUEBLES","DCI-MUN-RM-IM-LP-023-2023"]
[null,null,"UNIDAD DE PRESUPUESTOS Y CONTRATACION DE OBRA PUBLICA"]
[]
[]
[null,null,"DESCRIPCIÓN GENERAL DE LOS TRABAJOS:",null,null,"FECHA DE INICIO:"]
[null,null,"Adecuación de espacios para oficinas provisionales de la Dirección de Inspección y Vigilancia, Nóminas y construcción de almacén para el área de Moviendo tu Comunidad y otros trabajos complementarios.",null,null,"FECHA DE TERMINACIÓN:"]
[null,null,null,null,null,"PLAZO DE EJECUCIÓN:"]
[null,null,null,null,null,"FECHA DE PRESENTACIÓN:"]
[null,null,"RAZÓN SOCIAL DEL LICITANTE:","NOMBRE, CARGO Y FIRMA DEL LICITANTE",null,null,null,"DOCUMENTO"]
[null,null,null,null,null,null,null,"PE1"]
[]
[]
[null,"CATÁLOGO DE CONCEPTOS"]
[]
[null,"CLAVE","DESCRIPCIÓN ","UNIDAD","CANTIDAD","PRECIO UNITARIO ($)","PRECIO UNITARIO ($) CON LETRA","IMPORTE ($) M. N."]
[]
[null,"A","DIRECCIÓN DE INSPECCIÓN Y VIGILANCIA",null,null,null,null,{"$f":"H20+H25+H37+H40+H44+H48+H51+H56+H63++H76+H83+H91+H100+H108+H112","v":0}]
[null,"A.1","PRELIMINARES Y DEMOLICIONES",null,null,null,null,{"$f":"SUM(H21:H24)","v":0}]
[null,"DOPI-001","DESMANTELAMIENTO DE PUERTAS DE ACERO, (CON RECUPERACION), CON MEDIDAS APROXIMADAS DE 0.95 X 2.10 M, POR MEDIOS MANUALES, INCLUYE: RETIRO DE MARCO Y PUERTA ABATIBLE, APILAR EN BANCO DE OBRA, ACARREOS, LIMPIEZA, MANO DE OBRA, EQUIPO Y HERRAMIENTA.","PZA",2,null,{"$f":"Enletras(F21)","v":" Pesos   0 0/100 M.N"},{"$f":"ROUND((F21*E21),2)","v":0}]
[null,"DOPI-002","DESMANTELAMIENTO DE PUERTAS DE MADERA,(CON RECUPERACION), CON MEDIDAS APROXIMADAS DE 0.95 X 2.10 M, POR MEDIOS MANUALES, INCLUYE: RETIRO DE MARCO Y PUERTA ABATIBLE, APILAR EN BANCO DE OBRA, ACARREOS, LIMPIEZA, MANO DE OBRA, EQUIPO Y HERRAMIENTA.","PZA",6,null," Pesos   0 0/100 M.N",0]
[null,"DOPI-003","DESMANTELAMIENTO DE VENTANAS DE ALUMINIO,(CON RECUPERACION), POR MEDIOS MANUALES, INCLUYE: RETIRO DE MARCO, APILAR EN BANCO DE OBRA, ACARREOS, LIMPIEZA, MANO DE OBRA, EQUIPO Y HERRAMIENTA.","PZA",2,null," Pesos   0 0/100 M.N",0]
[null,"DOPI-004","DEMOLICIÓN A MANO DE PISO DE CONCRETO SIMPLE, INCLUYE: HERRAMIENTA, MANO DE OBRA, ACARREO INTERNO Y APILE PARA RETIRO POSTERIOR. VOLUMEN MEDIDO EN BANCO.","M3",5.49,null," Pesos   0 0/100 M.N",0]
[null,"A.2","ALBAÑILERIA",null,0,null,null,{"$f":"SUM(H26:H36)","v":0}]
[null,"DOPI-005","COLOCACIÓN DE PUERTA DE ACERO RECUPERADA, DE HASTA 0.9 M X 2.10 M, INCLUYE: TRABAJOS EN HERRERIA, CORTES, DESPERDICIOS, SOLDADURA, PLANTA DE SOLDAR, PRIMARIO ANTICORROSIVO, ACARREOS, HERRAJES DE FIJACION, PERFORACION, ELEVACIONES, AJUSTES EN SITIO, MATERIALES, MANO DE OBRA, EQUIPO, HERRAMIENTA Y TODO LO NECESARIO PARA SU CORRECTA EJECUCION.","PZA",2,null," Pesos   0 0/100 M.N",0]
[null,"DOPI-006","COLOCACIÓN DE PUERTA DE TAMBOR DE PINO RECUPERADA, CON MEDIDAS APROXIMADAS DE 0.9 M X 2.10 M, ACABADO CON LACA, INCLUYE: ACARREO, CORTES, SUMINISTRO, MARCO Y CHAMBRANAS DE TRIPLAY, CHAPA DE INTERCOMUNICACIÓN, BISAGRAS, MATERIALES, MANO DE OBRA, EQUIPO, HERRAMIENTA Y TODO LO NECESARIO PARA SU CORRECTA EJECUCION. ","PZA",6,null," Pesos   0 0/100 M.N",0]
[null,"DOPI-007","SUMINISTRO Y COLOCACIÓN DE PUERTA DE TAMBOR DE PINO, DE 0.90 M X 2.10 M, ACABADO CON LACA, INCLUYE: ACARREO, CORTES, SUMINISTRO, MARCO Y CHAMBRANAS DE TRIPLAY, CHAPA DE INTERCOMUNICACIÓN, BISAGRAS, MATERIALES, MANO DE OBRA, EQUIPO, HERRAMIENTA Y TODO LO NECESARIO PARA SU CORRECTA EJECUCION.","PZA",21,null," Pesos   0 0/100 M.N",0]
[null,"DOPI-008","SUMINISTRO Y COLOCACIÓN DE HERRERIA DE ALUMINIO BLANCO Y/O NATURAL CON PERFIL TIPO BOLSA DE 3\" Y CRISTAL CLARO DE 6 MM. INCLUYE: MATERIALES, MANO DE OBRA , EQUIPO, HERRAMIENTA Y SELLADO.","M2",9.4700000000000006,null," Pesos   0 0/100 M.N",0]
[null,"DOPI-009","TAPAR VANO DE VENTANA CON LADRILLO DE LAMA Y/O BLOCK A SOGA ASENTADO Y APLANADO CON MORTERO CEMENTO-ARENA PROPORCIONES 1:4, INCLUYE: HERRAMIENTA, MANO DE OBRA, RETIRO Y ACARREO DEL MATERIAL A BANCO DE OBRA PARA SU POSTERIOR RETIRO Y LIMPIEZA DEL ÁREA DE LOS TRABAJOS.","M2",4.74,null," Pesos   0 0/100 M.N",0]
[null,"DOPI-010","SUMINISTRO Y COLOCACION DE TAPAS PARA REGISTRO SANITARIO CON MEDIDAS DE 0.70 X 0.50 MT. FABRICADO CON CONCRETO HECHO EN OBRA DE F'c= 150 KG/CM2, CON MARCO Y CONTRAMARCO DE ANGULO DE 1 1/2 X 1/8\". INCLUYE: MATERIALES, HERRAMIENTAS, EQUIPO Y MANO DE OBRA.","PZA",13,null," Pesos   0 0/100 M.N",0]
[null,"DOPI-011","SUMINISTRO Y COLOCACION DE SISTEMA DE SELLO EPOXICO KINETIGLAZE EN COLOR GRIS A 10 MILS DE ESPESOR EN PISO DE CONCRETO, INCLUYE; PREPARACION DE SUPERFICIE PARA ELIMINAR IMPUREZAS Y PINTURA, APLICACIÓN DE BACHEO, APLICACIÓN DE PASTA KINETIWALL, APLICACIÓN DE SELLO EPOXICO, HERRAMIENTA Y MANO DE OBRA ESPECIALIZADA.","M2",916.86,null," Pesos   0 0/100 M.N",0]
[null,"DOPI-012","SUMINISTRO Y COLOCACIÓN DE CONCRETO HECHO EN OBRA F'C=250 KG/CM2 RESISTENCIA NORMAL, INCLUYE: MATERIALES, COLADO, VIBRADO, DESCIMBRA, CURADO,  MANO DE OBRA, EQUIPO Y HERRAMIENTA.","M3",4.1500000000000004,null," Pesos   0 0/100 M.N",0]
[null,"DOPI-013","REPARACION DE MURO EN JARDINERA CON LADRILLO DE LAMA Y/O BLOCK ASENTADO Y APLANADO  CON MORTERO CEMENTO-ARENA PROPORCION 1:4, INCLUYE: HERRAMIENTA, MANO DE OBRA, RETIRO Y ACARREO DEL MATERIAL A BANCO DE OBRA PARA SU POSTERIOR RETIRO Y LIMPIEZA DEL ÁREA DE LOS TRABAJOS.","M2",1.19,null," Pesos   0 0/100 M.N",0]
[null,"DOPI-014","SUMINISTRO Y COLOCACIÓN DE HERRERIA DE ALUMINIO BLANCO Y/O NATURAL CON PERFIL TIPO BOLSA DE 3\" Y CRISTAL CLARO DE 6 MM. INCLUYE: MATERIALES, MANO DE OBRA , EQUIPO, HERRAMIENTA Y SELLADO.","PZA",3,null," Pesos   0 0/100 M.N",0]
[null,"DOPI-015","EXCAVACIÓN POR MEDIOS MANUALES DE 0.00 A -2.00 M, AUTORIZADA EN SITIO POR SUPERVISIÓN, EN MATERIAL TIPO II,  INCLUYE: RETIRO DEL MATERIAL A BANCO DE OBRA INDICADO POR SUPERVISIÓN, ABUNDAMIENTO, MANO DE OBRA, EQUIPO Y HERRAMIENTA.","M3",1.19,null," Pesos   0 0/100 M.N",0]
[null,"A.3","TABLAROCA",null,0,null,null,{"$f":"SUM(H38:H39)","v":0}]
[null,"DOPI-016","SUMINISTRO E INSTALACIÓN DE MURO DE TABLAROCA  2 CARAS DE 14.28 CMS DE ESPESOR ,CON AISLAMIENTO TERMO-ACÚSTICO FABRICADO CON FIBRA DE VIDRIO DE BAJA DENSIDAD,  CAPA EXTERIOR EN TABLAROCA ESTANDAR BASTIDOR METALICO 9.20 @ 61 CMS INCLUYE: BOQUILLA, REFUERZO PERIMETRAL, MATERIAL DE FIJACIÓN (CLAVO Y FULMINANTE), SELLADO DE JUNTAS CON PERFACINTA Y PASTA REDIMIX, ACARREOS, CORTES, DESPERDICIOS, ELEVACIÓN, HERRAMIENTA, MANO DE OBRA Y EQUIPO.","M2",612.03,null," Pesos   0 0/100 M.N",0]
[null,"DOPI-017","SUMINISTRO Y COLOCACIÓN DE PLAFOND DE TABLARROCA, INCLUYE: ESTRUCTURA, COLGANTEO, BALAZO, PERFACINTA, REDIMIX, ANDAMIOS  UNA ALTURA DE 12 MT, MATERIALES, CORTES, DESPERDICIOS, MANO DE OBRA Y HERRAMIENTA.","M2",781.65,null," Pesos   0 0/100 M.N",0]
[null,"A.4","ACABADOS",null,0,null,null,{"$f":"SUM(H41:H43)","v":0}]
[null,"DOPI-018","SUMINISTRO Y APLICACIÓN DE PINTURA VINÍLICA COLOR BLANCO LÍNEA VINIMEX PREMIUM DE COMEX O SIMILAR A DOS MANOS, EN CUALQUIER COLOR, LIMPIANDO Y PREPARANDO LA SUPERFICIE CON SELLADOR, INCLUYE: MATERIALES, ANDAMIOS, MANO DE OBRA, EQUIPO Y HERRAMIENTA.","M2",1622.6,null," Pesos   0 0/100 M.N",0]
[null,"DOPI-019","PINTURA ESMALTE CARA ABIERTA EN HERRERIA DE PUERTAS Y VENTANAS DE FACHADA, INCLUYE: RASPADO Y PREPARACION EL AREA, ANDAMIOS, MATERIALES, MANO DE OBRA , EQUIPO HERRAMIENTA Y LIMPIEZA.","M2",53.37,null," Pesos   0 0/100 M.N",0]
[null,"DOPI-020","SUMINISTRO E INSTALACION DE PISO PORCELÁNICO TURIN DALTILE 60 X 60 CM ACABADO RECTIFICADO PULIDO BRILLANTE, INCLUYE: MATERIALES, MANO DE OBRA, ADHESIVOS, PREPARACION DEL AREA Y JUNTEO.","M2",29.65,null," Pesos   0 0/100 M.N",0]
[null,"A.5","HERRERIA",null,0,null,null,{"$f":"SUM(H45:H47)","v":0}]
[null,"DOPI-021","SUMINISTRO, HABILITADO E INSTALACIÓN  DE ACERO ESTRUCTURAL  (ASTM 572-50 ) PARA SOPORTE DE CUBIERTA. INCLUYE:  NIVELACIÓN, ELEMENTOS DE FIJACIÓN, CORTES, SOLDADURA, ACARREOS, DESPERDICIO, MATERIAL, MANO DE OBRA, EQUIPO Y HERRAMIENTA.","KG",2488.56,null," Pesos   0 0/100 M.N",0]
[null,"DOPI-022","SUMINISTRO , HABILITADO Y COLOCACION DE HERRERIA ESTRUCTURAL PARA ESCALERAS, PUERTAS, VENTANAS, CANCELES Y PASAMANOS, INCLUYE: FLETES, ACARREOS, CORTES, DESPERDICIOS, SOLDADURAS, PINTURA ANTICORROSIVA ( PRIMER ), MATERIAL Y MANO DE OBRA","KG",142.33000000000001,null," Pesos   0 0/100 M.N",0]
[null,"DOPI-023","SUMINISTRO Y COLOCACIÓN DE BANCA RECTANGULAR, MODELO RD-312B O SIMILAR, COLOR GRIS / NEGRO EN UNA SOLA PIEZA, INCLUYE: HERRAMIENTA, 4 DADOS DE CONCRETO HECHO EN OBRA F´C= 150 KG/CM2 DE 0.20X0.20X0.25 M, CIMBRA, DESCIMBRA, ACARREOS, MATERIALES, EQUIPO Y MANO DE OBRA.","PZA",7,null," Pesos   0 0/100 M.N",0]
[null,"A.6","PERGOLADO",null,0,null,null,{"$f":"SUM(H49:H50)","v":0}]
[null,"DOPI-024","SUMINISTRO, HABILITADO E INSTALACIÓN  DE ACERO ESTRUCTURAL  (ASTM 572-50 ) PARA SOPORTE DE CUBIERTA. INCLUYE:  NIVELACIÓN, ELEMENTOS DE FIJACIÓN, CORTES, SOLDADURA, ACARREOS, DESPERDICIO, MATERIAL, MANO DE OBRA, EQUIPO Y HERRAMIENTA.","KG",1278.08,null," Pesos   0 0/100 M.N",0]
[null,"DOPI-025","SUMINISTRO Y COLOCACION DE POLICARBONATO DE ALTA TECNOLOGIA CON PROTECCION A RAYOS UV DE 6 MM, EN VENTANALES DE AZOTEA, DE DIFERENTES TAMAÑOS, HASTA UNA ALTURA DE 8.0 M, CUALQUIER COLOR, INCLUYE: PREPARACION DEL AREA DE TRABAJO, ELEMENTOS DE FIJACION Y ANCLAJE, SELLO CON MATERIAL ELASTICO SIKAFLEX 1A O SIMILAR , CORTES, DESPERDICIOS, ACARREO Y ELEVACION, ANDAMIOS, MATERIALES, MANO DE OBRA ESPECIALIZADA, EQUIPO Y HERRAMIENTA.","M2",94.89,null," Pesos   0 0/100 M.N",0]
[null,"A.7","IMPERMEABILIZACIÓN",null,0,null,null,{"$f":"SUM(H52:H55)","v":0}]
[null,"DOPI-026","RETIRO DE IMPERMEABILIZANTE DE MANTO PREFABRICADO Y RASPADANDO LA SUPERFICIE DE AZOTEAS DE FORMA MANUAL O MECANICO, CON COA, ESPATULA Y/O ESMERIL, INCLUYE: ACARREOS INTERNOS, MANO DE OBRA, EQUIPO, HERRAMIENTA Y APILE DEL MATERIAL DONDE INDIQUE SUPERVISION.","M2",1188.5999999999999,null," Pesos   0 0/100 M.N",0]
[null,"DOPI-027","REPARACIÓN Y SELLADO DE GRIETAS EN AZOTEA MEDIANTE SELLADOR DE POLIURETANO DE ALTO DESEMPEÑO SIKAFLEX -1A O SIMILAR,  Y BARRA DE RESPALDO DE CELDA CERRADA SIKA ROD O SIMILAR, A CUALQUIER ALTURA Y/O NIVEL, INCLUYE: RETIRO DE SELLADOR VIEJO, REVIVIR JUNTA Y/O GRIETA, CORTE CON DISCO, PREPARACION DE LA SUPERFICIE, MATERIALES, MANO DE OBRA, EQUIPO Y HERRAMIENTA","M",35.58,null," Pesos   0 0/100 M.N",0]
[null,"DOPI-028","MANTENIMIENTO DE BAJANTES PLUVIALES DE 3.00 MTS APROXIMADAMENTE, INCLUYE: DESASOLVE DE BAJANTE, RECIBIR BAJANTE A LOSA CORRECTAMENTE, SELLADO EN PERIMETRO DE BAJANTE, LIMPIEZA Y TODO LO NECESARIO PARA SU CORRECTA EJECUCION.","PZA",11,null," Pesos   0 0/100 M.N",0]
[null,"DOPI-029","IMPERMEABILIZACION SOBRE LADRILLO DE AZOTEA, MCA. ACRITON PLUS, EN 2 CAPAS A RAZON DE 1 CAPA DE ACRITON SIN DILUIR CON RENDIMIENTO DE 0.5 LT/M2 DEJANDO SECAR 24 HR. Y UNA 2a. CAPA EN SENTIDO CRUZADO A LA PRIMERA CON RENDIMIENTO DE 0.5 LT/M2.  INCLUYE: RASPADO Y PREPARACION DE LA SUPERFICIE, CON GARANTIA DE 6 AÑOS.","M2",1188.5999999999999,null," Pesos   0 0/100 M.N",0]
[null,"A.8","CERCASEL",null,0,null,null,{"$f":"SUM(H57:H62)","v":0}]
[null,"DOPI-030","SUMINISTRO Y COLOCACIÓN  DE CERCASEL DE MEDIDAS 2.50M DE ALTURA APROXIMADAMENTE CADA UNA, PINTURA ELECTROESTATICA, CON POSTES DE TUBULAR DE 2\"X 2\", HERRAJES Y CERROJOS. INCLUYE: MANO DE OBRA, CORTES, DESPERDICIOS, EQUIPO, MANO DE OBRA Y HERRAMIENTA.","M2",130.85,null," Pesos   0 0/100 M.N",0]
[null,"DOPI-031","SUMINISTRO Y COLOCACION DE POSTES RECTOS PTR 2 1/4\" CUALQUIER ALTURA CON PINTURA TRIPLE PROTECCION DE POLYESTER THERMOENDURECIDO (COLOR A ESCOGER) SOLDADO A BASTIDOR DE POSTES METALICOS DE 2\" X 2\" Y/O CON ABRAZADERAS METALICAS. INCLUYE: ACCESORIOS, ABRAZADERAS, TAPAS, TORNILLOS, SOLDADURA, CORTES, AJUSTES, ELEMENTOS DE FIJACIÓN, NIVELACIÓN, PLOMEO, DESPERDICIOS, LIMPIEZA Y MANO DE OBRA.\n","M",68.260000000000005,null," Pesos   0 0/100 M.N",0]
[null,"DOPI-032","SUMINISTRO Y COLOCACIÓN DE CONCERTINA FILOS BISTURÍ 0.45 MTS DE DIÁMETRO REFORZADA (TRIPLE) GALVANIZADA, A CUALQUIER ALTURA Y/O NIVEL. INCLUYE: ALAMBRE PARA AMARRES, ABRAZADERAS, ACCESORIOS, ACARREOS, ELEVACIÓN, ANDAMIOS, MATERIALES, HERRAMIENTA Y MANO DE OBRA.","M",36.21,null," Pesos   0 0/100 M.N",0]
[null,"DOPI-033","SUMINISTRO Y COLOCACION DE PUERTA DE REJA CLASICA METÁLICA PREFABRICADA TIPO CERCASEL, DE HASTA 1.20 M DE ANCHO Y 2.00 M DE ALTURA, CERCA FABRICADA CON VARILLA DE ALAMBRE LISO GALVANIZADO CALIBRE 6, SOLDADO A BASTIDOR DE POSTES METALICOS DE 2\" X 2\", Y/O CON ABRAZADERAS METALICAS.  INCLUYE: CORTES, AJUSTES, ELEMENTOS DE FIJACIÓN, NIVELACIÓN, PLOMEO, DESPERDICIOS, LIMPIEZA Y MANO DE OBRA.","PZA",2,null," Pesos   0 0/100 M.N",0]
[null,"DOPI-034","SUMINISTRO Y COLOCACION DE PORTON DE REJA CLASICA METÁLICA PREFABRICADA TIPO CERCASEL, DE HASTA 3.00 M DE ANCHO Y 2.00 M DE ALTURA, FABRICADA EN DOS HOJAS, UNA CON ABATIMIENTO A 90° Y OTRA CON ABATIMIENTO A 180°, CERCA FABRICADA CON VARILLA DE ALAMBRE LISO GALVANIZADO CALIBRE 6, SOLDADO A BASTIDOR DE POSTES METALICOS DE 2\" X 2\", Y/O CON ABRAZADERAS METALICAS. INCLUYE: CORTES, AJUSTES, ELEMENTOS DE FIJACIÓN, NIVELACIÓN, PLOMEO, DESPERDICIOS, LIMPIEZA Y MANO DE OBRA.","PZA",2,null," Pesos   0 0/100 M.N",0]
[null,"DOPI-035","SUMINISTRO Y COLOCACION DE PORTON DE REJA CLASICA METÁLICA PREFABRICADA TIPO CERCASEL, DE HASTA 4.00 M DE ANCHO Y 2.00 M DE ALTURA, FABRICADA EN DOS HOJAS, UNA CON ABATIMIENTO A 90° Y OTRA CON ABATIMIENTO A 180°, CERCA FABRICADA CON VARILLA DE ALAMBRE LISO GALVANIZADO CALIBRE 6, SOLDADO A BASTIDOR DE POSTES METALICOS DE 2\" X 2\", Y/O CON ABRAZADERAS METALICAS. INCLUYE: CORTES, AJUSTES, ELEMENTOS DE FIJACIÓN, NIVELACIÓN, PLOMEO, DESPERDICIOS, LIMPIEZA Y MANO DE OBRA.","PZA",2,null," Pesos   0 0/100 M.N",0]
[null,"A.9","INSTALACION ELECTRICA",null,0,null,null,{"$f":"SUM(H64:H75)","v":0}]
[null,"DOPI-036","SALIDA ELECTRICA PARA CONTACTO DUPLEX POLARIZADO Y/O APAGADOR SENCILLO, OCULTA, CON TUBERIA CONDUIT GALVANIZADA PARED DELGADA DE HASTA 1\", CABLE VINANEL THW-LS 600 V. A 75° C, 90° C, MARCA CONDUCTORES MONTERREY O SIMILAR (VIAKON-PROTOCOLIZADO), CABLE VINANEL 21 THW-LS 600 V. A 75° C, 90° C, MARCA CONDUMEX (CONDUMEX PROTOCOLIZADO), CALIBRE 10 Y 12, CAJAS DE REGISTRO CUADRADAS, CHALUPAS Y TAPAS DE PVC REFORZADO, CONTACTO Y APAGADOR QUINZIÑO O SIMILAR, TAPA DE ALUMINIO, INCLUYE: HERRAMIENTA, TRAZO, RANURAS, CONEXIÓN A TIERRA, ACCESORIOS, MATERIALES MENORES Y DE CONSUMO, PRUEBAS, DESPERDICIOS Y ACARREO DEL MATERIAL AL SITIO DE SU COLOCACIÓN, A CUALQUIER NIVEL, EQUIPO Y MANO DE OBRA.","SAL",60,null," Pesos   0 0/100 M.N",0]
[null,"DOPI-037","SALIDA ELECTRICA PARA APAGADOR  CON CONDUIT DIAMETRO  DE 3/4\" PARED GRUESA,  2 HILOS CABLE CALIBRE 12, CON UN DESARROLLO DE HASTA 5 M. INCLUYE:  APAGADOR,  TAPA, CAJA, PLACA,  REGISTROS  Y ACCESORIOS,  ANDAMIOS, MATERIALES,  EQUIPO,  HERRAMIENTAS Y MANO DE  OBRA.","SAL",28,null," Pesos   0 0/100 M.N",0]
[null,"DOPI-038","SALIDA ELECTRICA PARA LAMPARAS, OCULTA, CON TUBERIA CONDUIT GALVANIZADA PARED DELGADA  DE HASTA 1\", CABLE VINANEL THW-LS 600 V. A 75° C, 90° C, MARCA CONDUCTORES MONTERREY O SIMILAR (VIAKON-PROTOCOLIZADO), CABLE VINANEL 21 THW-LS 600 V. A 75° C, 90° C, MARCA CONDUMEX (CONDUMEX PROTOCOLIZADO), CALIBRE 10 Y 12, CAJAS DE REGISTRO CUADRADAS, CHALUPAS Y TAPAS DE PVC REFORZADO, INCLUYE: HERRAMIENTA, TRAZO, RANURAS, CONEXIÓN A TIERRA, ACCESORIOS, MATERIALES MENORES Y DE CONSUMO, PRUEBAS, DESPERDICIOS Y ACARREO DEL MATERIAL AL SITIO DE SU COLOCACIÓN, A CUALQUIER NIVEL, EQUIPO Y MANO DE OBRA.","SAL",28,null," Pesos   0 0/100 M.N",0]
[null,"DOPI-039","SUMINISTRO E INSTALACIÓN  DE TUBERIA CONDUIT GALVANIZADA DE 3/4\" PARED GRUESA. INCLUYE: MATERIAL, MANO DE OBRA, HERRAMIENTA Y ANDAMIOS.","M",296.52999999999997,null," Pesos   0 0/100 M.N",0]
[null,"DOPI-040","SUMINISTRO E INSTALACION DE CHAROLA TIPO MALLA 66/200MM CON ACABADO ELECTRO ZINC, HASTA 210 CABLES UTP CAT6, TRAMO 3 M, INCLUYE : ACCESORIOS, SOPORTE UNICANAL PARA CHAROLA CON 0.70 ML. DE VARILLA ROSCADA DE 1/4, 0.37 ML. DE UNICANAL DE 4 X 2, 2 COPLES HEXAGONALES DE 1/4\", 2 ROLDANAS PLANAS DE 1/4\" Y 6 TUERCAS HEXAGONALES DE 1/4\", MATERIALES, HERRAMIENTA Y MANO DE OBRA ESPECIALIZADA.","M",47.44,null," Pesos   0 0/100 M.N",0]
[null,"DOPI-041","SUMINISTRO E INSTALACIÓN DE  CABLE DE COBRE THW CAL. 8, INCLUYE: MATERIALES, MANO DE OBRA, EQUIPO Y HERRAMIENTA.","M",237.22,null," Pesos   0 0/100 M.N",0]
[null,"DOPI-042","CABLE DE COBRE O THW CAL. No. 12 AWG, MCA. CONDUMEX O MONTERREY.  INCLUYE: DESPERDICIO, FLETES, MANIOBRAS, ACARREO, COLOCACIÓN A CUALQUIER NIVEL, PRUEBAS, MATERIALES MENORES Y HERRAMIENTA NECESARIA.","M",296.52999999999997,null," Pesos   0 0/100 M.N",0]
[null,"DOPI-043","SUMINISTRO Y COLOCACION DE CENTRO DE CARGA SQUARE D QO12, INCLUYE:  MATERIALES, HERRAMIENTA, MANO DE  OBRA, EQUIPO Y PRUEBAS.","PZA",2,null," Pesos   0 0/100 M.N",0]
[null,"DOPI-044","SUMINISTRO Y COLOCACIÓN DE INTERRUPTOR TERMOMAGNETICO DE 1X15-30 AMP. INCLUYE: MATERIAL, MANO DE OBRA Y HERRAMIENTA","PZA",29,null," Pesos   0 0/100 M.N",0]
[null,"DOPI-045","SUMINISTRO E INSTALACIÓN DE CABLE DE COBRE DESNUDO CAL. 6, MCA. CONDUMEX O MONTERREY, INCLUYE: MATERIAL, MANO DE OBRA Y HERRAMIENTA.","M",59.31,null," Pesos   0 0/100 M.N",0]
[null,"DOPI-046","SUMINISTRO Y COLOCACIÓN  DE LUMINARIA EMPOTRABLE LED, 42 W,4500 °K, 90-277 V, MONTAJE SOBREPUESTO EN A PLAFON 3 M DE ALTURA, CUADRADA CON MEDIDAS APROXIMADAS DE 0.60 X 0.60 X 0.02 M.,  MODELO CF-9105-NI, MARCA ADESI O SIMILAR, INCLUYE: FLETES, ACARREO, ELEVACION, FIJACION, CONEXIONES, PRUEBAS, MATERIALES, MANO DE OBRA, ANDAMIOS, EQUIPO Y HERRAMIENTA.","PZA",21,null," Pesos   0 0/100 M.N",0]
[null,"DOPI-047","SUMINISTRO Y COLOCACIÓN  DE LUMINARIA LED UFO PARA SUSPENDER EN TECHO 200W TL-7100. COLGANTE, , MARCA ILUX MODELO: NHB50120 O SIMILAR, INCLUYE: FLETES, ACARREO, ELEVACION, FIJACION, CONEXIONES, PRUEBAS, MATERIALES, MANO DE OBRA, ANCLAJES, CADENAS, EQUIPO Y HERRAMIENTA.","PZA",10,null," Pesos   0 0/100 M.N",0]
[null,"A.10","INSTALACION HIDROSANITARIA",null,0,null,null,{"$f":"SUM(H77:H82)","v":0}]
[null,"DOPI-048","SALIDA SANITARIA CON TUBERIA DE PVC SANITARIO CALIDAD DE NORMA DE 4\" PULGADAS, INCLUYE: CONEXIONES COMO CODOS Y TEES, DESDE EL PRIMER REGISTRO HASTA EL MUEBLE, MATERIALES MENORES, PRUEBAS, DESPERDICIOS Y ACARREO DE MATERIALES AL SITIO DE SU COLOCACION.","SAL",2,null," Pesos   0 0/100 M.N",0]
[null,"DOPI-049","SALIDA SANITARIA CON TUBERIA DE PVC SANITARIO CALIDAD DE NORMA DE 2\" PULGADAS, INCLUYE: CONEXIONES COMO CODOS Y TEES, DESDE EL PRIMER REGISTRO HASTA EL MUEBLE, MATERIALES MENORES, PRUEBAS, DESPERDICIOS Y ACARREO DE MATERIALES AL SITIO DE SU COLOCACION.","SAL",2,null," Pesos   0 0/100 M.N",0]
[null,"DOPI-050","SUMINISTRO Y COLOCACIÓN DE TUBO DE PVC DE 4\" DE DIÁMETRO, INCLUYE: ACARREOS, MATERIALES, MANO DE OBRA, EQUIPO Y HERRAMIENTA.","M",5.93,null," Pesos   0 0/100 M.N",0]
[null,"DOPI-051","SUMINISTRO Y COLOCACIÓN DE TUBO DE PVC DE 2\" DE DIÁMETRO, INCLUYE: ACARREOS, MATERIALES, MANO DE OBRA, EQUIPO Y HERRAMIENTA.","M",5.93,null," Pesos   0 0/100 M.N",0]
[null,"DOPI-052","SALIDA HIDRAULICA CON TUBERÍA DE CPVC DE 3/4\" DE DIAMETRO CON UNA DISTANCIA PROMEDIO DE 5.00 MT, INCLUYE: CODOS, COPLES, PEGAMENTO, MATERIALES, MANO DE OBRA, EQUIPO Y HERRAMIENTA.","SAL",5,null," Pesos   0 0/100 M.N",0]
[null,"DOPI-053","SUMINISTRO Y COLOCACIÓN DE REGISTRO SANITARIO FORJADO DE 0.40 M X 0.40 M Y HASTA 0.80 M DE PROFUNDIDAD, MEDIDAS INTERIORES, MUROS CON BLOCK 11 X 14 X 28 CM, COLOCADO A SOGA, JUNTEADO CON MORTERO CEMENTO ARENA 1:3, MARCO Y CONTRAMARCO DE ÁNGULO DE 2\" X 1/4\" DE ESPESOR REFORZADA CON VARILLA DE 3/8 A CADA 10 CM. CON CONCRETO DE F´c=150 KG/CM2, LOSA DE PISO DE 8 CM DE CONCRETO F´C= 150 KG/CM2 HECHO EN OBRA ARMADO CON MALLA ELECTROSOLDADA Y APLANADO INTERIOR CON MORTERO CEMENTO ARENA 1:4, INCLUYE: HERRAMIENTA, CIMBRA, DESCIMBRA, MATERIALES, EQUIPO Y MANO DE OBRA.","PZA",2,null," Pesos   0 0/100 M.N",0]
[null,"A.11","MUEBLES SANITARIOS",null,0,null,null,{"$f":"SUM(H84:H90)","v":0}]
[null,"DOPI-054","SUMINISTRO E INSTALACION DE INODORO TIPO ONE PIECE, MODELO VERONA DE COLOR BLANCO, MARCA CATO O SIMILAR, INCLUYE: ACARREO, PRUEBAS, LIMPIEZA, MATERIALES, MANO DE OBRA, EQUIPO Y HERRAMIENTA.","PZA",2,null," Pesos   0 0/100 M.N",0]
[null,"DOPI-055","SUMINISTRO E INSTALACIÓN DE LAVABO VENUS EMPOTRABLE CERÁMICO CIRCULAR BLANCO DE 48.9 CM, MARCA ORION, O SIMILAR INCLUYE: MANO DE OBRA, COLOCACIÓN,CESPOL DE LATON ACABADO CROMO BRILLANTE, EQUIPO, HERRAMIENTA Y ACARREOS. EN CUALQUIER NIVEL.","PZA",2,null,{"$f":"Enletras(F85)","v":" Pesos   0 0/100 M.N"},{"$f":"ROUND((F85*E85),2)","v":0}]
[null,"DOPI-056","SUMINISTRO  Y  COLOCACIÓN DE LLAVE MEZCLADORA DUOMANDO, MODELO NEMY, MARCA GLACIER BAY O SIMILAR, CROMO O SIMILAR, INCLUYE: PAQUETE DE INSTALACION DE LAVABO COFLEX, ACCESORIOS, CONEXIONES, MATERIALES, MANO DE OBRA, EQUIPO, HERRAMIENTA Y TODO LO NECESARIO PARA SU CORRECTA EJECUCION.","PZA",2,null," Pesos   0 0/100 M.N",0]
[null,"DOPI-057","SUMINISTRO Y COLOCACIÓN DE DISPENSADOR DE JABÓN MARCA JOFEL, MOD.  MINI JOFEL AC-84000-AU COLOR GRIS HUMO MEDIDAS 13.5 X 11.5 X 8.2 CM O SIMILAR, INCLUYE: MATERIALES, MANO DE OBRA, HERRAJES DE FIJACIÓN Y HERRAMIENTA.","PZA",2,null," Pesos   0 0/100 M.N",0]
[null,"DOPI-058","SUMINISTRO Y COLOCACIÓN DE DESPACHADOR DE PAPEL HIGIÉNICO MARCA JOFEL, MOD. PH-52002 COLOR TRANSPARENTE EN BASE GRIS O SIMILAR, INCLUYE: MATERIALES, MANO DE OBRA, HERRAJES DE FIJACIÓN Y HERRAMIENTA.","PZA",2,null," Pesos   0 0/100 M.N",0]
[null,"DOPI-059","SUMINISTRO Y COLOCACIÓN DE ESPEJO FLOTADO RECTANGULAR BISELADO DE 6 MM INCLINACIÓN DE 10°, INCLUYE: MATERIALES MENORES Y DE CONSUMO,  ELEMENTOS DE FIJACION, MARCO DE ALUMINIO DE 2\", VINILO, PIJAS, HERRAMIENTAS, LIMPIEZA Y MANO DE OBRA ESPECIALIZADA.","M2",2.37,null," Pesos   0 0/100 M.N",0]
[null,"DOPI-060","SUMINISTRO Y COLOCACIÓN DE MAMPARAS MARCA MODUMEX LÍNEA LEEDER M1 MODELO ESTÁNDAR ACABADO SÓLIDO FENÓLICO 12.7 MM COLOR PLATINUM DROPS O SIMILAR, INCLUYE: MATERIALES, MANO DE OBRA, EQUIPO, HERRAJES DE FIJACIÓN Y HERRAMIENTA.","M2",4.1500000000000004,null," Pesos   0 0/100 M.N",0]
[null,"A.12","VOZ Y DATOS",null,0,null,null,{"$f":"SUM(H92:H99)","v":0}]
[null,"DOPI-061","SUMINISTRO, INSTALACION Y PUESTA EN MARCHA DE NODOS DOBLES DE RED, INCLUYE: CABLE UTP CATEGORIA 6A RISER AZUL, FLACE PLATE DOBLE, CAJA REGISTRO, ABRAZADERAS DE UÑA , ACCESORIOS PARA REMATE EN RACK JACK CONEXIÓN DESDE EL SITE HASTA EL PUESTO DE TRABAJO, SUMINISTRO E INSTALACION DE TUBO CONDUIT DE 19 MM GALVANIZADO DE PARED DELGADA, MATERIALES DE FIJACION, PASES DE MURO, PASES DE LOSA, APERTURA, Y REPARACION DE MUROS Y/O BOVEDA, MATERIALES, MANO DE OBRA, EQUIPO Y HERRAMIENTA.","SAL",205,null,{"$f":"Enletras(F92)","v":" Pesos   0 0/100 M.N"},{"$f":"ROUND((F92*E92),2)","v":0}]
[null,"DOPI-062","SUMINISTRO, INSTALACIÓN DE CABLE UTP CAT 6 AZUL COLOR AZUL MARCA PANDUIT SIMILAR A CUALQUIER NIVEL Y/O ALTURA. INCLUYE: CABLE UTP CATEGORIA 6 MARCA PANDUIT O SIMILAR COLOR AZUL,  PACH CORD, ETIQUETADO, ACCESORIOS PARA REMATE, CONEXIONES, MATERIALES DE FIJACIÓN, MATERIALES, REGISTROS, MANO DE OBRA, EQUIPO, HERRAMIENTA, ESCALERAS Y ANDAMIOS.","M",6694.64,null," Pesos   0 0/100 M.N",0]
[null,"DOPI-063","SUMINISTRO E INSTALACION DE CHAROLA TIPO MALLA 66/200MM CON ACABADO ELECTRO ZINC, HASTA 210 CABLES UTP CAT6, TRAMO 3 M, INCLUYE : ACCESORIOS, SOPORTE UNICANAL PARA CHAROLA CON 0.70 ML. DE VARILLA ROSCADA DE 1/4, 0.37 ML. DE UNICANAL DE 4 X 2, 2 COPLES HEXAGONALES DE 1/4\", 2 ROLDANAS PLANAS DE 1/4\" Y 6 TUERCAS HEXAGONALES DE 1/4\", MATERIALES, HERRAMIENTA Y MANO DE OBRA ESPECIALIZADA.","M",204.01,null," Pesos   0 0/100 M.N",0]
[null,"DOPI-064","SUMINISTRO E INSTALACION DE CAMARAS IP ALAMBRICO PARA EXTERIORES MARCA HICKVISION O SIMILAR DE 4MP, INCLUYE; CONFIGURACION, DVR, CABLE UTP CATEGORIA 6, DISCO DURO, FUENTE DE PODER, ACCESORIOS PARA REMATE, CONEXIÓN  HASTA EL SITE, MATERIALES DE FIJACION, PASES DE MURO, PASES DE LOSA, APERTURA, Y REPARACION DE MUROS Y/O BOVEDA, MATERIALES, REGISTROS, TUBERIA, MANO DE OBRA, EQUIPO Y HERRAMIENTA Y TODO LO NECESARIO PARA SU CORRECTA EJECUCION.","PZA",12,null," Pesos   0 0/100 M.N",0]
[null,"DOPI-065","SUMINISTRO E INSTALACIÓN  DE TUBERIA CONDUIT GALVANIZADA DE 3/4\" PARED GRUESA. INCLUYE: MATERIAL, MANO DE OBRA, HERRAMIENTA Y ANDAMIOS.","M",199.15,null," Pesos   0 0/100 M.N",0]
[null,"DOPI-066","SUMINISTRO E INTALACION DE PATCH PANEL CAT 6 DE 48 PUERTOS COLOR NEGRO MARCA PANDUIT O SIMILAR, INCLUYE; CONFIGURACION, ACCESORIOS PARA REMATE, MATERIALES DE FIJACION, MATERIALES, REGISTROS, MANO DE OBRA, EQUIPO Y HERRAMIENTA Y TODO LO NECESARIO PARA SU CORRECTA EJECUCION. ","PZA",2,null," Pesos   0 0/100 M.N",0]
[null,"DOPI-067","INSTALACION Y FIJACION DE RACK,INCLUYE;  ACCESORIOS PARA REMATE, MATERIALES DE FIJACION, ANCLAJES, PASES DE MURO, PASES DE LOSA, APERTURA, Y REPARACION DE MUROS Y/O BOVEDA, MATERIALES, REGISTROS, MANO DE OBRA, EQUIPO Y HERRAMIENTA Y TODO LO NECESARIO PARA SU CORRECTA EJECUCION. ","PZA",1,null," Pesos   0 0/100 M.N",0]
[null,"DOPI-068","SISTEMA DE TIERRA FISICA. INCLUYE: SUMINISTRO Y COLOCACION, TRES VARILLAS COPPER WELD DE 5/8 X 3.00 MTS, 15 MTS DE CABLE DESNUDO DE COBRE CAL. 2, TRES SOLDADURAS CADWELD, TRES CARGAS CADWELY UN CONECTOR MECANICO CAL. 2, MANO DE OBRA Y LO NECESARIO PARA SU CORRECTA EJECUCION.","PZA",1,null," Pesos   0 0/100 M.N",0]
[null,"A.13","ACCESOS CHAPA MAGNETICA",null,0,null,null,{"$f":"SUM(H101:H107)","v":0}]
[null,"DOPI-069","SUMINISTRO Y COLOCACION DE MODULO EXPANSOR 2 PUERTAS P/ CENTAUR C/, O SIMILAR INCLUYE: ACARREOS, PERFORACION, ELEVACIONES, MATERIALES, MANO DE OBRA, EQUIPO Y HERRAMIENTA.","PZA",2,null,{"$f":"Enletras(F101)","v":" Pesos   0 0/100 M.N"},{"$f":"ROUND((F101*E101),2)","v":0}]
[null,"DOPI-070","SUMINISTRO Y COLOCACION DE BATERIA RECARGABLE / ACIDO DE PLOMO SELLADO SLA / 12VDC / 7AH,O SIMILAR INCLUYE: ACARREOS, PERFORACION, ELEVACIONES, MATERIALES, MANO DE OBRA, EQUIPO Y HERRAMIENTA.","PZA",1,null," Pesos   0 0/100 M.N",0]
[null,"DOPI-071","SUMINISTRO Y COLOCACION DE CHAPA MAGNÉTICA DE 600-LB, LED DE ESTATUS INCLUYE: ACARREOS, PERFORACION, ELEVACIONES, MATERIALES, MANO DE OBRA, EQUIPO Y HERRAMIENTA.","PZA",2,null," Pesos   0 0/100 M.N",0]
[null,"DOPI-072","SUMINISTRO Y COLOCACION DE BOTÓN SIN CONTACTO ILUMINADO NORMALMENTE ABIERTO Y CERRADO INCLUYE: ACARREOS, PERFORACION, ELEVACIONES, MATERIALES, MANO DE OBRA, EQUIPO Y HERRAMIENTA.","PZA",2,null," Pesos   0 0/100 M.N",0]
[null,"DOPI-073","SUMINISTRO Y COLOCACION DE LECTORA ESTÁNDAR ID PRIVADO CON BLUETOOTH, NFC, MIFARE , DESFIRE, & ICLASS(CSN) SEGURA EAL5+, ESCALABLE O SIMILAR, INCLUYE: ACARREOS, PERFORACION, ELEVACIONES, MATERIALES, MANO DE OBRA, EQUIPO Y HERRAMIENTA.","PZA",2,null," Pesos   0 0/100 M.N",0]
[null,"DOPI-074"," SUMINISTRO Y COLOCACION DE ACCESS AND POWER INTEGRATION - KIT INCLUDES TROVE2 ENCLOSURE AND TCV2 ALTRONIX/ CDVI BACKPLANE INCLUYE: ACARREOS, PERFORACION, ELEVACIONES, MATERIALES, MANO DE OBRA, EQUIPO Y HERRAMIENTA.","PZA",1,null," Pesos   0 0/100 M.N",0]
[null,"DOPI-075","SERVICIO DE INSTALACIÓN, CONFIGURACIÓN Y PUESTA A PUNTO DE EQUIPAMIENTO, INCLUYE: ACARREOS, PERFORACION, ELEVACIONES, MATERIALES, MANO DE OBRA, EQUIPO Y HERRAMIENTA.","PZA",1,null," Pesos   0 0/100 M.N",0]
[null,"A.14","AIRE ACONDICIONADO",null,0,null,null,{"$f":"SUM(H109:H111)","v":0}]
[null,"DOPI-076","SUMINISTRO E INSTALACION DE EQUIPO DE AIRE ACONDICIONADO MINI SPLIT. FRIO/ CALOR 1 TON, 220 V, 12,000 BTU. INCLUYE: CONTROL UNIVERSAL, CANALIZACIONES 5 MT, SOPERTES, ARRANQUE DE EQUIPO, CARGA DE GAS, MATERIALES, ANDAMIOS, HERRAMIENTA Y MANO DE OBRA ESPECIALIZADA.","PZA",18,null,{"$f":"Enletras(F109)","v":" Pesos   0 0/100 M.N"},{"$f":"ROUND((F109*E109),2)","v":0}]
[null,"DOPI-077","INSTALACION DE EQUIPO DE AIRE ACONDICIONADO MINI SPLIT. FRIO/ CALOR 2 TON, 220 V, 24,000 BTU. INCLUYE: CONTROL UNIVERSAL, CANALIZACIONES 5 MT, SOPERTES, ARRANQUE DE EQUIPO, CARGA DE GAS, MATERIALES, ANDAMIOS, HERRAMIENTA Y MANO DE OBRA ESPECIALIZADA.","PZA",8,null," Pesos   0 0/100 M.N",0]
[null,"DOPI-078","SALIDA ELECTRICA PARA CONTACTO DUPLEX POLARIZADO Y/O APAGADOR SENCILLO, OCULTA, CON TUBERIA CONDUIT GALVANIZADA PARED DELGADA DE HASTA 1\", CABLE VINANEL THW-LS 600 V. A 75° C, 90° C, MARCA CONDUCTORES MONTERREY O SIMILAR (VIAKON-PROTOCOLIZADO), CABLE VINANEL 21 THW-LS 600 V. A 75° C, 90° C, MARCA CONDUMEX (CONDUMEX PROTOCOLIZADO), CALIBRE 10 Y 12, CAJAS DE REGISTRO CUADRADAS, CHALUPAS Y TAPAS DE PVC REFORZADO, CONTACTO Y APAGADOR QUINZIÑO O SIMILAR, TAPA DE ALUMINIO, INCLUYE: HERRAMIENTA, TRAZO, RANURAS, CONEXIÓN A TIERRA, ACCESORIOS, MATERIALES MENORES Y DE CONSUMO, PRUEBAS, DESPERDICIOS Y ACARREO DEL MATERIAL AL SITIO DE SU COLOCACIÓN, A CUALQUIER NIVEL, EQUIPO Y MANO DE OBRA.","PZA",26,null," Pesos   0 0/100 M.N",0]
[null,"A.15","LIMPIEZA",null,0,null,null,{"$f":"SUM(H113:H113)","v":0}]
[null,"DOPI-079","LIMPIEZA GRUESA DE OBRA DURANTE Y HASTA LA ENTREGA DE LA MISMA RETIRANDO MATERIAL DE ESCOMBRO O BASURA DE TRABAJOS RELACIONADOS. INCLUYE: MANO DE OBRA, HERRAMIENTA,  EQUIPO.","M2",1233.55,null,{"$f":"Enletras(F113)","v":" Pesos   0 0/100 M.N"},{"$f":"ROUND((F113*E113),2)","v":0}]
[null,"B","MOVIENDO TU COMUNIDAD",null,0,null,null,{"$f":"H115+H120+H136+H140+H144+H148+H153+H158++H167+H174+H178+H192+H200","v":0}]
[null,"B.1","PRELIMINARES Y DEMOLICIONES",null,0,null,null,{"$f":"SUM(H116:H119)","v":0}]
[null,"DOPI-080","DEMOLICIÓN A MANO DE PISO DE CONCRETO SIMPLE, INCLUYE: HERRAMIENTA, MANO DE OBRA, ACARREO INTERNO Y APILE PARA RETIRO POSTERIOR. VOLUMEN MEDIDO EN BANCO.","M3",3.67,null,{"$f":"Enletras(F116)","v":" Pesos   0 0/100 M.N"},{"$f":"ROUND((F116*E116),2)","v":0}]
[null,"DOPI-081","DESINSTALACIÓN Y RETIRO DE CUBIERTA DE LAMINA DE ASBESTO, DE HASTA 4.00 M DE ALTURA, POR MEDIOS MANUALES Y/O MECÁNICOS, INCLUYE: ANDAMIOS, ACARREOS, MATERIAL, MANO DE OBRA, EQUIPO, HERRAMIENTA Y LIMPIEZA.","M2",44.38,null," Pesos   0 0/100 M.N",0]
[null,"DOPI-082","DEMOLICION DE MURO A SOGA CON DALAS Y CASTILLOS . INCLUYE: MANO DE OBRA, HERRAMIENTAS,  ACARREO INTERNO EN CARRETILLA, APILE EN LUGAR DONDE INDIQUE LA SUPERVISION  PARA SU POSTERIOR RETIRO","M2",22.33,null," Pesos   0 0/100 M.N",0]
[null,"DOPI-083","DESMANTELAMIENTO DE PUERTAS DE METAL SIN CRISTAL, (CON RECUPERACION), CON MEDIDAS APROXIMADAS DE 2.30 X 2.10 M, DE ALTURA POR MEDIOS MANUALES, INCLUYE: RETIRO DE MARCO Y PUERTA ABATIBLE, APILAR EN BANCO DE OBRA, ACARREOS, LIMPIEZA, MANO DE OBRA, EQUIPO Y HERRAMIENTA.","PZA",1,null," Pesos   0 0/100 M.N",0]
[null,"B.2","ALBAÑILERIA",null,0,null,null,{"$f":"SUM(H121:H135)","v":0}]
[null,"DOPI-084","SUMINISTRO Y COLOCACIÓN DE PUERTA DE TAMBOR DE PINO, DE HASTA 0.9 M X 2.10 M, ACABADO CON LACA, INCLUYE: ACARREO, CORTES, SUMINISTRO, MARCO Y CHAMBRANAS DE TRIPLAY, CHAPA DE INTERCOMUNICACIÓN, BISAGRAS, MATERIALES, MANO DE OBRA, EQUIPO Y HERRAMIENTA.","PZA",2,null," Pesos   0 0/100 M.N",0]
[null,"DOPI-085","SUMINISTRO Y COLOCACIÓN DE CONCRETO HECHO EN OBRA F'C=250 KG/CM2 RESISTENCIA NORMAL, INCLUYE: MATERIALES, COLADO, VIBRADO, DESCIMBRA, CURADO,  MANO DE OBRA, EQUIPO Y HERRAMIENTA.","M3",4.99,null," Pesos   0 0/100 M.N",0]
[null,"DOPI-086","EXCAVACIÓN POR MEDIOS MANUALES DE 0.00 A -2.00 M, AUTORIZADA EN SITIO POR SUPERVISIÓN, EN MATERIAL TIPO II,  INCLUYE: RETIRO DEL MATERIAL A BANCO DE OBRA INDICADO POR SUPERVISIÓN, ABUNDAMIENTO, MANO DE OBRA, EQUIPO Y HERRAMIENTA.","M3",19.78,null," Pesos   0 0/100 M.N",0]
[null,"DOPI-087","TAPAR VANO DE VENTANA CON LADRILLO DE LAMA Y/O BLOCK A SOGA ASENTADO Y APLANADO CON MORTERO CEMENTO-ARENA PROPORCIONES 1:4, INCLUYE: HERRAMIENTA, MANO DE OBRA, RETIRO Y ACARREO DEL MATERIAL A BANCO DE OBRA PARA SU POSTERIOR RETIRO Y LIMPIEZA DEL ÁREA DE LOS TRABAJOS.","M2",2.58,null," Pesos   0 0/100 M.N",0]
[null,"DOPI-088","FORJADO DE ZAVALETA ENTRE MURO Y LAMINA DE BODEGA, A BASE DE LADRILLO DE AZOTEA DE 17 X 17 CMS, PEGADO CON MORTERO CEMENTO-ARENA DE RIO PROPORCION 1:3, INCLUYE: ACARREO, DESPERDICIOS, CORTES, ELEVACION, PREPARACION DE LA SUPERFICIE, MATERIALES, MANO DE OBRA, EQUIPO Y HERRAMIENTA.","M",63.08,null," Pesos   0 0/100 M.N",0]
[null,"DOPI-089","ELABORACION DE VERTEDERO, CON MEDIDAS APROXIMADAS DE 0.70 X 0.70 M POR 0.30 M DE ALTO MEDIDAS INTERIORES, DE BLOCK A SOGA ASENTADO Y APLANDO CON MORTERO CEMENTO - ARENA PROP. 1:4, INCLUYE: CESPOL, DESPERDICIOS, ACARREOS, HABILITADO, TRAZO, NIVELACION, PLOMEO, MATERIALES, MANO DE OBRA, EQUIPO Y HERRAMIENTA.","PZA",1,null," Pesos   0 0/100 M.N",0]
[null,"DOPI-090","CIMIENTO DE MAMPOSTERÍA DE PIEDRA BRAZA, ASENTADA CON MORTERO CEMENTO-ARENA  EN PROPORCIÓN 1:3, INCLUYE: MATERIALES, DESPERDICIOS, HERRAMIENTAS, LIMPIEZA, MANO DE OBRA Y ACARREO DE MATERIALES AL SITIO DE SU UTILIZACIÓN.","M3",6.03,null," Pesos   0 0/100 M.N",0]
[null,"DOPI-091","ANCLAJE DE CASTILLO CON CONCRETO F´C= 150 KG/CM2 HECHO EN OBRA CON UNA SECCIÓN DE 14X14X50 CM, ARMADO CON 4 VARILLAS DEL #4, ESTRIBOS DEL #3 @15 CM, INCLUYE: ARMADO, COLADO, CURADO, VIBRADO, CIMBRA COMÚN, DESCIMBRA, TRASLAPES, CRUCES DE VARILLAS CON ELEMENTOS TRANSVERSALES, DESPERDICIOS, ACARREOS, MANO DE OBRA Y HERRAMIENTA.","PZA",10,null," Pesos   0 0/100 M.N",0]
[null,"DOPI-092","CASTILLO CON UNA SECCIÓN DE 15 X 15 CM CON CONCRETO F´C= 250 KG/CM2 HECHO EN OBRA, ARMADO CON ARMEX 15X15-4, INCLUYE: HERRAMIENTA, CIMBRA COMÚN, COLADO, CURADO, VIBRADO, DESCIMBRA, DESPERDICIOS, ACARREOS, EQUIPO Y MANO DE OBRA.","M",25.23,null," Pesos   0 0/100 M.N",0]
[null,"DOPI-093","DALA CON UNA SECCIÓN DE 15 X 20 CM CON CONCRETO F´C= 250 KG/CM2 HECHO EN OBRA, ARMADO CON ARMEX 15X20-4, INCLUYE: HERRAMIENTA, CIMBRA COMÚN, COLADO, CURADO, VIBRADO, DESCIMBRA, DESPERDICIOS, ACARREOS, EQUIPO Y MANO DE OBRA.","M",54.82,null," Pesos   0 0/100 M.N",0]
[null,"DOPI-094","CIMBRA ACABADO COMÚN EN DALAS Y CASTILLOS A BASE DE MADERA DE PINO DE 2A, INCLUYE: MATERIALES, ACARREOS, CORTES, HABILITADO, CIMBRADO, DESCIMBRA, MANO DE OBRA, EQUIPO Y HERRAMIENTA.","M2",31.22,null," Pesos   0 0/100 M.N",0]
[null,"DOPI-095","APLICACION DE ZARPEO EN MURO Y/O BOVEDAS, CON MORTERO CEMENTO-ARENA DE RIO PROPORCION 1:3, CUALQUIER ALTURA Y/O NIVEL, INCLUYE: ACARREOS, DESPERDICIOS, ANDAMIOS, PLOMEADO, NIVELADO, REGLEADO, RECORTES, MATERIALES, MANO DE OBRA, EQUIPO, HERRAMIENTA.","M2",36.700000000000003,null," Pesos   0 0/100 M.N",0]
[null,"DOPI-096","APLANADO DE 2.50 CM DE ESPESOR EN MURO CON MORTERO CEMENTO-ARENA 1:3, ACABADO PULIDO O APALILLADO, INCLUYE: MATERIALES, ACARREOS, DESPERDICIOS, MANO DE OBRA, ANDAMIOS, PLOMEADO, NIVELADO, REGLEADO, RECORTES, MANO DE OBRA, EQUIPO Y HERRAMIENTA.","M2",36.700000000000003,null," Pesos   0 0/100 M.N",0]
[null,"DOPI-097","BOQUILLA DE 15 A 20 CM DE ANCHO, CON MORTERO CEMENTO - ARENA PROPORCIÓN 1:3, ACABADO REPELLADO, INCLUYE: HERRAMIENTA, PLOMEADO, NIVELADO, DESPERDICIOS, MATERIALES, EQUIPO Y MANO DE OBRA.","M",11.01,null," Pesos   0 0/100 M.N",0]
[null,"DOPI-098","PLANTILLA DE 10 CM DE ESPESOR CON CONCRETO HECHO EN OBRA DE 250 KG/CM2, INCLUYE: CIMBRA, DESCIMBRA, COLADO, CURADO, MATERIALES, DESPERDICIOS, MANO DE OBRA, EQUIPO Y HERRAMIENTA.","M2",61.37,null," Pesos   0 0/100 M.N",0]
[null,"B.3","TABLAROCA",null,0,null,null,{"$f":"SUM(H137:H139)","v":0}]
[null,"DOPI-099","SUMINISTRO E INSTALACIÓN DE MURO DE TABLAROCA  2 CARAS DE 14.28 CMS DE ESPESOR ,CON AISLAMIENTO TERMO-ACÚSTICO FABRICADO CON FIBRA DE VIDRIO DE BAJA DENSIDAD,  CAPA EXTERIOR EN TABLAROCA ESTANDAR BASTIDOR METALICO 9.20 @ 61 CMS INCLUYE: BOQUILLA, REFUERZO PERIMETRAL, MATERIAL DE FIJACIÓN (CLAVO Y FULMINANTE), SELLADO DE JUNTAS CON PERFACINTA Y PASTA REDIMIX, ACARREOS, CORTES, DESPERDICIOS, ELEVACIÓN, HERRAMIENTA, MANO DE OBRA Y EQUIPO.","M2",15.27,null," Pesos   0 0/100 M.N",0]
[null,"DOPI-100","SUMINISTRO Y COLOCACIÓN DE PLAFOND DE TABLARROCA, INCLUYE: ESTRUCTURA, COLGANTEO, BALAZO, PERFACINTA, REDIMIX, ANDAMIOS  UNA ALTURA DE 12 MT, MATERIALES, CORTES, DESPERDICIOS, MANO DE OBRA Y HERRAMIENTA.","M2",8.2799999999999994,null," Pesos   0 0/100 M.N",0]
[null,"DOPI-101","INSTALACIÓN DE MURO DE DUROCK DE HASTA 12 CM DE ESPESOR  A DOS CARAS, ALTURA SEGÚN DISEÑO, CONCEPTO INCLUYE: BASTIDOR METÁLICO ESTRUCTURAL, TORNILLERÍA, PERFACINTA Y REDIMIX, BOQUILLAS, MANO DE OBRA, ANDAMIOS Y LIMPIEZA.","M2",182.25,null," Pesos   0 0/100 M.N",0]
[null,"B.4","HERRERIA",null,0,null,null,{"$f":"SUM(H141:H143)","v":0}]
[null,"DOPI-102","SUMINISTRO , HABILITADO Y COLOCACION DE HERRERIA ESTRUCTURAL PARA ESCALERAS, PUERTAS, VENTANAS, CANCELES Y PASAMANOS, INCLUYE: FLETES, ACARREOS, CORTES, DESPERDICIOS, SOLDADURAS, PINTURA ANTICORROSIVA ( PRIMER ), MATERIAL Y MANO DE OBRA","KG",298.18,null," Pesos   0 0/100 M.N",0]
[null,"DOPI-103","SUMINISTRO, HABILITADO E INSTALACIÓN  DE ACERO ESTRUCTURAL  (ASTM 572-50 ) PARA SOPORTE DE CUBIERTA. INCLUYE:  NIVELACIÓN, ELEMENTOS DE FIJACIÓN, CORTES, SOLDADURA, ACARREOS, DESPERDICIO, MATERIAL, MANO DE OBRA, EQUIPO Y HERRAMIENTA.","KG",1168.1400000000001,null," Pesos   0 0/100 M.N",0]
[null,"DOPI-104","SUMINISTRO E INSTALACIÓN DE LÁMINA METÁLICA EN CUBIERTA Y/O FACHADA, DE FIJACIÓN EXPUESTA, FABRICADA A BASE DE LÁMINA ACANALADA PINTRO TIPO RN-101 CAL. 24 COLOR BLANCO/FDO, INCLUYE: ANDAMIOS, MATERIALES, FLETE, HERRAMIENTA, EQUIPO Y MANO DE OBRA.","M2",114.94,null," Pesos   0 0/100 M.N",0]
[null,"B.5","MALLA CICLON",null,0,null,null,{"$f":"SUM(H145:H147)","v":0}]
[null,"DOPI-105","MALLA CICLON DE 55 X 55 MM. ABERTURA, CAL. 10.5, ALTURA DE POSTES DE 2.50 MTS., ALTURA EFECTIVA 2.00 MT., CONSIDERANDO SEPARACION ENTRE POSTES DE 3.00 MT. INCLUYE: SUMINISTRO Y COLOCACION, MARCO SUPERIOR DE 42 MM. DE DIAMETRO CAL. 20, ALAMBRE GALVANIZADO CAL 10.5 EN REMATE, POSTE DE LINEA CAL. 18 DE 48 MM. DE DIAMETRO, POSTE ESQUINERO DE 60 MM. DE DIAMETRO, POSTERIA Y ALAMBRE GALVANIZADO Y DE PUAS 3 HILOS EN LA PARTE SUPERIOR, TODO DE MATERIAL GALVANIZADO POR IMERSION EN CALIENTE, BAYONETAS, ABRAZADERAS, TORNILLERIA, ETC.","M2",6.17,null," Pesos   0 0/100 M.N",0]
[null,"DOPI-106","SUMINISTRO Y COLOCACION DE MALLA BLIND (CINTA ROMPE VIENTOS) DE 63 MM DE ANCHO DE COLOR ASIGNADO POR SUPERVICION EN PUERTAS DE MALLA CICLONICA INCLUYE: MATERIAL, MANO DE OBRA Y HERRAMIENTA.","M2",13.05,null," Pesos   0 0/100 M.N",0]
[null,"DOPI-107","SUMINISTRO Y COLOCACION DE PORTON DE MALLA CICLONICA GALVANIZADA CAL.11, ABERTURA DE 55*55 DE 2.00 M DE ALTURA Y 1.50 M DE LARGO 2 HOJAS DANDO UN TOTAL DE 3.00 M DE LARGO, DOBLE ABATIMIENTO, CON POSTES DE FIJACION DE HASTA 3\" CALIBRE 20 , MARCOS DE TUBULAR DE HASTA 3\", CAL.20 Y REFUERZO INTERNO DE HASTA 3\" CAL.18,  EN CADA HOJA UN TUBULAR HORIZONTAL Y UNO VERTICAL, BISAGRAS, PASADOR DE PISO Y SUPERIOR, Y 3 HILOS DE ALAMBRE DE PUAS. INCLUYE: ACCESORIOS, ACARREOS, ELEVACIÓN, ANDAMIOS, MATERIALES, HERRAMIENTA Y MANO DE OBRA.","PZA",1,null," Pesos   0 0/100 M.N",0]
[null,"B.6","IMPERMEABILIZANTE",null,0,null,null,{"$f":"SUM(H149:H152)","v":0}]
[null,"DOPI-108","RETIRO DE IMPERMEABILIZANTE DE MANTO PREFABRICADO Y RASPADANDO LA SUPERFICIE DE AZOTEAS DE FORMA MANUAL O MECANICO, CON COA, ESPATULA Y/O ESMERIL, INCLUYE: ACARREOS INTERNOS, MANO DE OBRA, EQUIPO, HERRAMIENTA Y APILE DEL MATERIAL DONDE INDIQUE SUPERVISION.","M2",46.38,null," Pesos   0 0/100 M.N",0]
[null,"DOPI-109","REPARACIÓN Y SELLADO DE GRIETAS EN AZOTEA MEDIANTE SELLADOR DE POLIURETANO DE ALTO DESEMPEÑO SIKAFLEX -1A O SIMILAR,  Y BARRA DE RESPALDO DE CELDA CERRADA SIKA ROD O SIMILAR, A CUALQUIER ALTURA Y/O NIVEL, INCLUYE: RETIRO DE SELLADOR VIEJO, REVIVIR JUNTA Y/O GRIETA, CORTE CON DISCO, PREPARACION DE LA SUPERFICIE, MATERIALES, MANO DE OBRA, EQUIPO Y HERRAMIENTA","M",22.94,null," Pesos   0 0/100 M.N",0]
[null,"DOPI-110","MANTENIMIENTO DE BAJANTES PLUVIALES DE 3.00 MTS APROXIMADAMENTE, INCLUYE: DESASOLVE DE BAJANTE, RECIBIR BAJANTE A LOSA CORRECTAMENTE, SELLADO EN PERIMETRO DE BAJANTE, LIMPIEZA Y TODO LO NECESARIO PARA SU CORRECTA EJECUCION.","PZA",12,null," Pesos   0 0/100 M.N",0]
[null,"DOPI-111","IMPERMEABILIZACION SOBRE LADRILLO DE AZOTEA, MCA. ACRITON PLUS, EN 2 CAPAS A RAZON DE 1 CAPA DE ACRITON SIN DILUIR CON RENDIMIENTO DE 0.5 LT/M2 DEJANDO SECAR 24 HR. Y UNA 2a. CAPA EN SENTIDO CRUZADO A LA PRIMERA CON RENDIMIENTO DE 0.5 LT/M2.  INCLUYE: RASPADO Y PREPARACION DE LA SUPERFICIE, CON GARANTIA DE 6 AÑOS.","M2",57.34,null," Pesos   0 0/100 M.N",0]
[null,"B.7","ACABADOS",null,0,null,null,{"$f":"SUM(H154:H157)","v":0}]
[null,"DOPI-112","SUMINISTRO Y APLICACIÓN DE PINTURA VINÍLICA COLOR BLANCO LÍNEA VINIMEX PREMIUM DE COMEX O SIMILAR A DOS MANOS, EN CUALQUIER COLOR, LIMPIANDO Y PREPARANDO LA SUPERFICIE CON SELLADOR, INCLUYE: MATERIALES, ANDAMIOS, MANO DE OBRA, EQUIPO Y HERRAMIENTA.","M2",636.39,null," Pesos   0 0/100 M.N",0]
[null,"DOPI-113","PINTURA ESMALTE CARA ABIERTA EN HERRERIA DE PUERTAS Y VENTANAS DE FACHADA, INCLUYE: RASPADO Y PREPARACION EL AREA, ANDAMIOS, MATERIALES, MANO DE OBRA , EQUIPO HERRAMIENTA Y LIMPIEZA.","M2",37.85,null," Pesos   0 0/100 M.N",0]
[null,"DOPI-114","SUMINISTRO Y APLICACIÓN DE PINTURA DE ESMALTE CARA CERRADA COLOR BLANCO Y/O  GRIS EN PORTONES DE LÁMINA EXISTENTES INCLUYE; PREPARACION DEL ÁREA, ANDAMIOS, MATERIAL, MANO DE OBRA, EQUIPO Y HERRAMIENTA.","M2",137.62,null," Pesos   0 0/100 M.N",0]
[null,"DOPI-115","SUMINISTRO E INSTALACION DE PISO PORCELÁNICO TURIN DALTILE 60 X 60 CM ACABADO RECTIFICADO PULIDO BRILLANTE, INCLUYE: MATERIALES, MANO DE OBRA, ADHESIVOS, PREPARACION DEL AREA Y JUNTEO.","M2",7.91,null," Pesos   0 0/100 M.N",0]
[null,"B.8","INSTALACION HIDROSANITARIA",null,0,null,null,{"$f":"SUM(H159:H166)","v":0}]
[null,"DOPI-116","SALIDA SANITARIA CON TUBERIA DE PVC SANITARIO CALIDAD DE NORMA DE 4\" PULGADAS, INCLUYE: CONEXIONES COMO CODOS Y TEES, DESDE EL PRIMER REGISTRO HASTA EL MUEBLE, MATERIALES MENORES, PRUEBAS, DESPERDICIOS Y ACARREO DE MATERIALES AL SITIO DE SU COLOCACION.","SAL ",6,null," Pesos   0 0/100 M.N",0]
[null,"DOPI-117","SALIDA SANITARIA CON TUBERIA DE PVC SANITARIO CALIDAD DE NORMA DE 2\" PULGADAS, INCLUYE: CONEXIONES COMO CODOS Y TEES, DESDE EL PRIMER REGISTRO HASTA EL MUEBLE, MATERIALES MENORES, PRUEBAS, DESPERDICIOS Y ACARREO DE MATERIALES AL SITIO DE SU COLOCACION.","SAL ",4,null," Pesos   0 0/100 M.N",0]
[null,"DOPI-118","SUMINISTRO Y COLOCACIÓN DE TUBO DE PVC DE 4\" DE DIÁMETRO, INCLUYE: ACARREOS, MATERIALES, MANO DE OBRA, EQUIPO Y HERRAMIENTA.","M",77.41,null," Pesos   0 0/100 M.N",0]
[null,"DOPI-119","SUMINISTRO Y COLOCACIÓN DE TUBO DE PVC DE 2\" DE DIÁMETRO, INCLUYE: ACARREOS, MATERIALES, MANO DE OBRA, EQUIPO Y HERRAMIENTA.","M",23.8,null," Pesos   0 0/100 M.N",0]
[null,"DOPI-120","SALIDA HIDRAULICA CON TUBERÍA DE CPVC DE 3/4\" DE DIAMETRO CON UNA DISTANCIA PROMEDIO DE 5.00 MT, INCLUYE: CODOS, COPLES, PEGAMENTO, MATERIALES, MANO DE OBRA, EQUIPO Y HERRAMIENTA.","SAL ",4,null," Pesos   0 0/100 M.N",0]
[null,"DOPI-121","SUMINISTRO Y COLOCACION DE TUBERÍA DE CPVC DE 3/4\" DE DIAMETRO , INCLUYE: CODOS, COPLES, PEGAMENTO, MATERIALES, MANO DE OBRA, EQUIPO Y HERRAMIENTA.","M",65.94,null," Pesos   0 0/100 M.N",0]
[null,"DOPI-122","SUMINISTRO Y COLOCACION DE TUBERÍA DE CPVC DE 1/2\" DE DIAMETRO , INCLUYE: CODOS, COPLES, PEGAMENTO, MATERIALES, MANO DE OBRA, EQUIPO Y HERRAMIENTA.","M",13.19,null," Pesos   0 0/100 M.N",0]
[null,"DOPI-123","SUMINISTRO Y COLOCACIÓN DE REGISTRO SANITARIO FORJADO DE 0.40 M X 0.40 M Y HASTA 0.80 M DE PROFUNDIDAD, MEDIDAS INTERIORES, MUROS CON BLOCK 11 X 14 X 28 CM, COLOCADO A SOGA, JUNTEADO CON MORTERO CEMENTO ARENA 1:3, MARCO Y CONTRAMARCO DE ÁNGULO DE 2\" X 1/4\" DE ESPESOR REFORZADA CON VARILLA DE 3/8 A CADA 10 CM. CON CONCRETO DE F´c=150 KG/CM2, LOSA DE PISO DE 8 CM DE CONCRETO F´C= 150 KG/CM2 HECHO EN OBRA ARMADO CON MALLA ELECTROSOLDADA Y APLANADO INTERIOR CON MORTERO CEMENTO ARENA 1:4, INCLUYE: HERRAMIENTA, CIMBRA, DESCIMBRA, MATERIALES, EQUIPO Y MANO DE OBRA.","PZA",3,null," Pesos   0 0/100 M.N",0]
[null,"B.9","MUEBLES SANITARIOS",null,0,null,null,{"$f":"SUM(H168:H173)","v":0}]
[null,"DOPI-124","SUMINISTRO E INSTALACION DE INODORO TIPO ONE PIECE, MODELO VERONA DE COLOR BLANCO, MARCA CATO O SIMILAR, INCLUYE: ACARREO, PRUEBAS, LIMPIEZA, MATERIALES, MANO DE OBRA, EQUIPO Y HERRAMIENTA.","PZA",2,null," Pesos   0 0/100 M.N",0]
[null,"DOPI-125","SUMINISTRO E INSTALACIÓN DE LAVABO EMPOTRABLE CERÁMICO CIRCULAR BLANCO DE 48.9 CM, MARCA ORION, O SIMILAR INCLUYE: MANO DE OBRA, COLOCACIÓN, PEDESTAL, CESPOL DE LATON MODELO 4209, EQUIPO, HERRAMIENTA Y ACARREOS, EN CUALQUIER NIVEL.","PZA",2,null," Pesos   0 0/100 M.N",0]
[null,"DOPI-126","SUMINISTRO  Y  COLOCACIÓN DE LLAVE MEZCLADORA DUOMANDO, MODELO NEMY, MARCA GLACIER BAY O SIMILAR, CROMO O SIMILAR, INCLUYE: PAQUETE DE INSTALACION DE LAVABO COFLEX, ACCESORIOS, CONEXIONES, MATERIALES, MANO DE OBRA, EQUIPO, HERRAMIENTA Y TODO LO NECESARIO PARA SU CORRECTA EJECUCION.","PZA",2,null," Pesos   0 0/100 M.N",0]
[null,"DOPI-127","SUMINISTRO Y COLOCACIÓN DE DISPENSADOR DE JABÓN MARCA JOFEL, MOD.  MINI JOFEL AC-84000-AU COLOR GRIS HUMO MEDIDAS 13.5 X 11.5 X 8.2 CM O SIMILAR, INCLUYE: MATERIALES, MANO DE OBRA, HERRAJES DE FIJACIÓN Y HERRAMIENTA.","PZA",2,null," Pesos   0 0/100 M.N",0]
[null,"DOPI-128","SUMINISTRO Y COLOCACIÓN DE DESPACHADOR DE PAPEL HIGIÉNICO MARCA JOFEL, MOD. PH-52002 COLOR TRANSPARENTE EN BASE GRIS O SIMILAR, INCLUYE: MATERIALES, MANO DE OBRA, HERRAJES DE FIJACIÓN Y HERRAMIENTA.","PZA",2,null," Pesos   0 0/100 M.N",0]
[null,"DOPI-129","SUMINISTRO Y COLOCACIÓN DE ESPEJO FLOTADO RECTANGULAR BISELADO DE 6 MM INCLINACIÓN DE 10°, INCLUYE: MATERIALES MENORES Y DE CONSUMO,  ELEMENTOS DE FIJACION, MARCO DE ALUMINIO DE 2\", VINILO, PIJAS, HERRAMIENTAS, LIMPIEZA Y MANO DE OBRA ESPECIALIZADA.","M2",2.29,null," Pesos   0 0/100 M.N",0]
[null,"B.10","AIRE ACONDICIONADO",null,0,null,null,{"$f":"SUM(H175:H177)","v":0}]
[null,"DOPI-130","SUMINISTRO E INSTALACION DE EXTRACTOR ATMOSFÉRICO DE ALUMINIO O GALVANIZADO CON MEDIDAS APROXIMADAS DE 18\" DE GARGANTA Y DIMENSIONES APROXIMADAS DE 46X46X107 CM, INCLUYE: ANDAMIOS,  MATERIAL, CORTES DE LAMINA, DESPERDICIOS, SOLDADURA, PLANTA DE SOLDAR, PRIMARIO ANTICORROSIVO, ACARREOS, HERRAJES DE FIJACION, PERFORACION, ELEVACIONES, MATERIALES, MANO DE OBRA Y  EQUIPO.","PZA",4,null," Pesos   0 0/100 M.N",0]
[null,"DOPI-131","INSTALACION DE EQUIPO DE AIRE ACONDICIONADO MINI SPLIT. FRIO/ CALOR 1 TON, 220 V, 12,000 BTU. INCLUYE: CONTROL UNIVERSAL, ARRENQUE DE EQUIPO, CARGA DE GAS, MATERIALES, ANDAMIOS, HERRAMIENTA Y MANO DE OBRA Y TODO LO NECESARIO PARA SU CORRECTA EJECUCION. ","PZA",2,null," Pesos   0 0/100 M.N",0]
[null,"DOPI-132","SALIDA ELECTRICA PARA CONTACTO DUPLEX POLARIZADO Y/O APAGADOR SENCILLO, OCULTA, CON TUBERIA DE POLIDUCTO DE DIAMETRO DE HASTA 1\", CABLE VINANEL THW-LS 600 V. A 75° C, 90° C, MARCA CONDUCTORES MONTERREY O SIMILAR (VIAKON-PROTOCOLIZADO), CABLE VINANEL 21 THW-LS 600 V. A 75° C, 90° C, MARCA CONDUMEX (CONDUMEX PROTOCOLIZADO), CALIBRE 10 Y 12, CAJAS DE REGISTRO CUADRADAS, CHALUPAS Y TAPAS DE PVC REFORZADO, CONTACTO Y APAGADOR QUINZIÑO O SIMILAR, TAPA DE ALUMINIO, INCLUYE: HERRAMIENTA, TRAZO, RANURAS, CONEXIÓN A TIERRA, ACCESORIOS, MATERIALES MENORES Y DE CONSUMO, PRUEBAS, DESPERDICIOS Y ACARREO DEL MATERIAL AL SITIO DE SU COLOCACIÓN, A CUALQUIER NIVEL, EQUIPO Y MANO DE OBRA.","PZA",8,null," Pesos   0 0/100 M.N",0]
[null,"B.11","INSTALACION ELECTRICA",null,0,null,null,{"$f":"SUM(H179:H191)","v":0}]
[null,"DOPI-133","SALIDA ELECTRICA PARA CONTACTO DUPLEX POLARIZADO Y/O APAGADOR SENCILLO, OCULTA, CON TUBERIA CONDUIT GALVANIZADA PARED DELGADA DE HASTA 1\", CABLE VINANEL THW-LS 600 V. A 75° C, 90° C, MARCA CONDUCTORES MONTERREY O SIMILAR (VIAKON-PROTOCOLIZADO), CABLE VINANEL 21 THW-LS 600 V. A 75° C, 90° C, MARCA CONDUMEX (CONDUMEX PROTOCOLIZADO), CALIBRE 10 Y 12, CAJAS DE REGISTRO CUADRADAS, CHALUPAS Y TAPAS DE PVC REFORZADO, CONTACTO Y APAGADOR QUINZIÑO O SIMILAR, TAPA DE ALUMINIO, INCLUYE: HERRAMIENTA, TRAZO, RANURAS, CONEXIÓN A TIERRA, ACCESORIOS, MATERIALES MENORES Y DE CONSUMO, PRUEBAS, DESPERDICIOS Y ACARREO DEL MATERIAL AL SITIO DE SU COLOCACIÓN, A CUALQUIER NIVEL, EQUIPO Y MANO DE OBRA.","SAL",17,null," Pesos   0 0/100 M.N",0]
[null,"DOPI-134","SALIDA ELECTRICA PARA APAGADOR  CON CONDUIT DIAMETRO  DE 3/4\" PARED GRUESA,  2 HILOS CABLE CALIBRE 12, CON UN DESARROLLO DE HASTA 5 M. INCLUYE:  APAGADOR,  TAPA, CAJA, PLACA,  REGISTROS  Y ACCESORIOS,  ANDAMIOS, MATERIALES,  EQUIPO,  HERRAMIENTAS Y MANO DE  OBRA.","SAL",17,null,{"$f":"Enletras(F180)","v":" Pesos   0 0/100 M.N"},{"$f":"ROUND((F180*E180),2)","v":0}]
[null,"DOPI-135","SALIDA ELECTRICA PARA LAMPARAS, OCULTA, CON TUBERIA CONDUIT GALVANIZADA PARED DELGADA  DE HASTA 1\", CABLE VINANEL THW-LS 600 V. A 75° C, 90° C, MARCA CONDUCTORES MONTERREY O SIMILAR (VIAKON-PROTOCOLIZADO), CABLE VINANEL 21 THW-LS 600 V. A 75° C, 90° C, MARCA CONDUMEX (CONDUMEX PROTOCOLIZADO), CALIBRE 10 Y 12, CAJAS DE REGISTRO CUADRADAS, CHALUPAS Y TAPAS DE PVC REFORZADO, INCLUYE: HERRAMIENTA, TRAZO, RANURAS, CONEXIÓN A TIERRA, ACCESORIOS, MATERIALES MENORES Y DE CONSUMO, PRUEBAS, DESPERDICIOS Y ACARREO DEL MATERIAL AL SITIO DE SU COLOCACIÓN, A CUALQUIER NIVEL, EQUIPO Y MANO DE OBRA.","SAL",17,null," Pesos   0 0/100 M.N",0]
[null,"DOPI-136","SUMINISTRO E INSTALACIÓN  DE TUBERIA CONDUIT GALVANIZADA DE 3/4\" PARED GRUESA. INCLUYE: MATERIAL, MANO DE OBRA, HERRAMIENTA Y ANDAMIOS.","M",137.62,null," Pesos   0 0/100 M.N",0]
[null,"DOPI-137","SUMINISTRO E INSTALACIÓN DE  CABLE DE COBRE THW CAL. 8, INCLUYE: MATERIALES, MANO DE OBRA, EQUIPO Y HERRAMIENTA.","M",114.69,null," Pesos   0 0/100 M.N",0]
[null,"DOPI-138","CABLE DE COBRE O THW CAL. No. 12 AWG, MCA. CONDUMEX O MONTERREY.  INCLUYE: DESPERDICIO, FLETES, MANIOBRAS, ACARREO, COLOCACIÓN A CUALQUIER NIVEL, PRUEBAS, MATERIALES MENORES Y HERRAMIENTA NECESARIA.","M",137.62,null," Pesos   0 0/100 M.N",0]
[null,"DOPI-139","SUMINISTRO E INSTALACIÓN DE CABLE DE COBRE DESNUDO CAL. 6, MCA. CONDUMEX O MONTERREY, INCLUYE: MATERIAL, MANO DE OBRA Y HERRAMIENTA.","M",57.34,null," Pesos   0 0/100 M.N",0]
[null,"DOPI-140","SUMINISTRO Y COLOCACIÓN  DE LUMINARIA EMPOTRABLE LED, 42 W,4500 °K, 90-277 V, MONTAJE SOBREPUESTO EN A PLAFON 3 M DE ALTURA, CUADRADA CON MEDIDAS APROXIMADAS DE 0.60 X 0.60 X 0.02 M.,  MODELO CF-9105-NI, MARCA ADESI O SIMILAR, INCLUYE: FLETES, ACARREO, ELEVACION, FIJACION, CONEXIONES, PRUEBAS, MATERIALES, MANO DE OBRA, ANDAMIOS, EQUIPO Y HERRAMIENTA.","PZA",2,null," Pesos   0 0/100 M.N",0]
[null,"DOPI-141","SUMINISTRO Y COLOCACIÓN  DE LUMINARIA LED UFO PARA SUSPENDER EN TECHO 200W TL-7100. COLGANTE, , MARCA ILUX MODELO: NHB50120 O SIMILAR, INCLUYE: FLETES, ACARREO, ELEVACION, FIJACION, CONEXIONES, PRUEBAS, MATERIALES, MANO DE OBRA, ANCLAJES, CADENAS, EQUIPO Y HERRAMIENTA.","PZA",10,null," Pesos   0 0/100 M.N",0]
[null,"DOPI-142","SUMINISTRO Y COLOCACIÓN DE LUMINARIAS REFLECTORES DE SOBRE PONER LED INTEGRADO, PANTALLA DE CRISTAL, CON SOPORTE DE METAL AJUSTABLE, RESISTENTE A POLVO Y HUMEDAD, O SIMILAR, INCLUYE: FIJACIONES, TAQUETES, ACCESORIOS, RECORTES, MATERIALES, MANO DE OBRA, EQUIPO Y HERRAMIENTA.","PZA",4,null," Pesos   0 0/100 M.N",0]
[null,"DOPI-143","SALIDA  ELÉCTRICA  PARA ALIMENTACIÓN DE CENTRO DE CARGA  CON  TUBERIA CONDUIT PARED GRUESA DE  1 1/4\", 2 HILOS  CABLE CALIBRE 12 ,   CON UN DESARROLLO  DE HASTA 20 M. INCLUYE:   CAJA,  PLACA,   REGISTROS  Y ACCESORIOS, ANDAMIOS, MATERIALES, EQUIPO,  HERRAMIENTAS   Y MANO DE  OBRA.","SAL ",1,null," Pesos   0 0/100 M.N",0]
[null,"DOPI-144","SUMINISTRO Y COLOCACIÓN DE CENTRO DE CARGA QO4 NEMA 1 TIPO SOBREPONER, INCLUYE: MATERIALES, MANO DE OBRA Y HERRAMIENTA","PZA",1,null," Pesos   0 0/100 M.N",0]
[null,"DOPI-145","SUMINISTRO Y COLOCACIÓN DE INTERRUPTOR TERMOMAGNETICO DE 1X15-30 AMP. INCLUYE: MATERIAL, MANO DE OBRA Y HERRAMIENTA","PZA",4,null," Pesos   0 0/100 M.N",0]
[null,"B.12","VOZ Y DATOS",null,0,null,null,{"$f":"SUM(H193:H199)","v":0}]
[null,"DOPI-146","SUMINISTRO, INSTALACION Y PUESTA EN MARCHA DE NODOS DOBLES DE RED, INCLUYE: CABLE UTP CATEGORIA 6A RISER AZUL, FLACE PLATE DOBLE, CAJA REGISTRO, ABRAZADERAS DE UÑA , ACCESORIOS PARA REMATE EN RACK JACK CONEXIÓN DESDE EL SITE HASTA EL PUESTO DE TRABAJO, SUMINISTRO E INSTALACION DE TUBO CONDUIT DE 19 MM GALVANIZADO DE PARED DELGADA, MATERIALES DE FIJACION, PASES DE MURO, PASES DE LOSA, APERTURA, Y REPARACION DE MUROS Y/O BOVEDA, MATERIALES, MANO DE OBRA, EQUIPO Y HERRAMIENTA.","SAL",35,null,{"$f":"Enletras(F193)","v":" Pesos   0 0/100 M.N"},{"$f":"ROUND((F193*E193),2)","v":0}]
[null,"DOPI-147","SUMINISTRO, INSTALACIÓN DE CABLE UTP CAT 6 AZUL COLOR AZUL MARCA PANDUIT SIMILAR A CUALQUIER NIVEL Y/O ALTURA. INCLUYE: CABLE UTP CATEGORIA 6 MARCA PANDUIT O SIMILAR COLOR AZUL,  PACH CORD, ETIQUETADO, ACCESORIOS PARA REMATE, CONEXIONES, MATERIALES DE FIJACIÓN, MATERIALES, REGISTROS, MANO DE OBRA, EQUIPO, HERRAMIENTA, ESCALERAS Y ANDAMIOS.","M",820.01,null," Pesos   0 0/100 M.N",0]
[null,"DOPI-148","SUMINISTRO E INSTALACION DE CHAROLA TIPO MALLA 66/200MM CON ACABADO ELECTRO ZINC, HASTA 210 CABLES UTP CAT6, TRAMO 3 M, INCLUYE : ACCESORIOS, SOPORTE UNICANAL PARA CHAROLA CON 0.70 ML. DE VARILLA ROSCADA DE 1/4, 0.37 ML. DE UNICANAL DE 4 X 2, 2 COPLES HEXAGONALES DE 1/4\", 2 ROLDANAS PLANAS DE 1/4\" Y 6 TUERCAS HEXAGONALES DE 1/4\", MATERIALES, HERRAMIENTA Y MANO DE OBRA ESPECIALIZADA.","M",57.34,null," Pesos   0 0/100 M.N",0]
[null,"DOPI-149","SUMINISTRO Y COLOCACION DE GABINETE DE PARED PARA SERVIDOR DE 19\" 9U COLOR NEGRO, MARCA INTELLINET O SIMILAR,INCLUYE; MATERIALES DE FIJACION, PASES DE MURO, PASES DE LOSA, APERTURA, Y REPARACION DE MUROS Y/O BOVEDA, MATERIALES, REGISTROS, MANO DE OBRA, EQUIPO Y HERRAMIENTA Y TODO LO NECESARIO PARA SU CORRECTA EJECUCION.","PZA",1,null," Pesos   0 0/100 M.N",0]
[null,"DOPI-150","SUMINISTRO E INTALACION DE PATCH PANEL CAT 6 DE 24 PUERTOS COLOR NEGRO MARCA PANDUIT O SIMILAR, INCLUYE; CONFIGURACION, ACCESORIOS PARA REMATE, MATERIALES DE FIJACION, MATERIALES, REGISTROS, MANO DE OBRA, EQUIPO Y HERRAMIENTA Y TODO LO NECESARIO PARA SU CORRECTA EJECUCION. ","PZA",1,null," Pesos   0 0/100 M.N",0]
[null,"DOPI-151","SUMINISTRO E INTALACION ANTENA EPMP FORCE 300-25L HASTA 400 MBPS O SIMILA PARA ENLACE DE REDES, A CUALQUIE ALTURA Y/O NIVEL, INCLUYE ;CONFIGURACION, REMATE PARA CONEXXION EN SITE, MATERIALES DE FIJACION, MASTIL, PASES DE MURO, PASES DE LOSA APERTURA, Y REPARACION DE MUROS Y/O BOVEDA, MATERIALES, REGISTROS, MANO DE OBRA, EQUIPO, HERRAMIENTA Y TODO LO NECESARIO PARA SU CORRECTA EJECUCION.","PZA",2,null," Pesos   0 0/100 M.N",0]
[null,"DOPI-152","SISTEMA DE TIERRA FISICA. INCLUYE: SUMINISTRO Y COLOCACION, TRES VARILLAS COPPER WELD DE 5/8 X 3.00 MTS, 15 MTS DE CABLE DESNUDO DE COBRE CAL. 2, TRES SOLDADURAS CADWELD, TRES CARGAS CADWELY UN CONECTOR MECANICO CAL. 2, MANO DE OBRA Y LO NECESARIO PARA SU CORRECTA EJECUCION.","PZA",1,null," Pesos   0 0/100 M.N",0]
[null,"B.13","LIMPIEZA",null,0,null,null,{"$f":"SUM(H201:H201)","v":0}]
[null,"DOPI-153","LIMPIEZA GRUESA DE OBRA DURANTE Y HASTA LA ENTREGA DE LA MISMA RETIRANDO MATERIAL DE ESCOMBRO O BASURA DE TRABAJOS RELACIONADOS. INCLUYE: MANO DE OBRA, HERRAMIENTA,  EQUIPO.","M2",224.21,null,{"$f":"Enletras(F201)","v":" Pesos   0 0/100 M.N"},{"$f":"ROUND((F201*E201),2)","v":0}]
[]
[]
[]
[]
[null,null,"RESUMEN DE PARTIDAS"]
[null,null,{"$f":"C8","v":"Adecuación de espacios para oficinas provisionales de la Dirección de Inspección y Vigilancia, Nóminas y construcción de almacén para el área de Moviendo tu Comunidad y otros trabajos complementarios."}]
[]
[]
[null,{"$f":"B13","v":0},{"$f":"C13","v":0},null,null,null,null,{"$f":"H13","v":0}]
[null,"A",{"$f":"VLOOKUP(B211,$B$19:$H$201,2,FALSE)","v":"DIRECCIÓN DE INSPECCIÓN Y VIGILANCIA"},null,null,null,null,{"$f":"VLOOKUP(B211,B19:H201,7,)","v":0}]
[null,"A.1",{"$f":"VLOOKUP(B212,$B$19:$H$201,2,FALSE)","v":"PRELIMINARES Y DEMOLICIONES"},null,null,null,null,{"$f":"VLOOKUP(B212,$B$19:$H$201,7,FALSE)","v":0}]
[null,"A.2",{"$f":"VLOOKUP(B213,$B$19:$H$201,2,FALSE)","v":"ALBAÑILERIA"},null,null,null,null,{"$f":"VLOOKUP(B213,$B$19:$H$201,7,FALSE)","v":0}]
[null,"A.3","TABLAROCA",null,null,null,null,0]
[null,"A.4","ACABADOS",null,null,null,null,0]
[null,"A.5","HERRERIA",null,null,null,null,0]
[null,"A.6","PERGOLADO",null,null,null,null,0]
[null,"A.7","IMPERMEABILIZACIÓN",null,null,null,null,0]
[null,"A.8","CERCASEL",null,null,null,null,0]
[null,"A.9","INSTALACION ELECTRICA",null,null,null,null,0]
[null,"A.10","INSTALACION HIDROSANITARIA",null,null,null,null,0]
[null,"A.11","MUEBLES SANITARIOS",null,null,null,null,0]
[null,"A.12","VOZ Y DATOS",null,null,null,null,0]
[null,"A.13","ACCESOS CHAPA MAGNETICA",null,null,null,null,0]
[null,"A.14","AIRE ACONDICIONADO",null,null,null,null,0]
[null,"A.15",{"$f":"VLOOKUP(B226,$B$19:$H$201,2,FALSE)","v":"LIMPIEZA"},null,null,null,null,{"$f":"VLOOKUP(B226,$B$19:$H$201,7,FALSE)","v":0}]
[null,"B",{"$f":"VLOOKUP(B227,$B$19:$H$201,2,FALSE)","v":"MOVIENDO TU COMUNIDAD"},null,null,null,null,{"$f":"VLOOKUP(B227,B19:H201,7,)","v":0}]
[null,"B.1",{"$f":"VLOOKUP(B228,$B$19:$H$201,2,FALSE)","v":"PRELIMINARES Y DEMOLICIONES"},null,null,null,null,{"$f":"VLOOKUP(B228,$B$19:$H$201,7,FALSE)","v":0}]
[null,"B.2",{"$f":"VLOOKUP(B229,$B$19:$H$201,2,FALSE)","v":"ALBAÑILERIA"},null,null,null,null,{"$f":"VLOOKUP(B229,$B$19:$H$201,7,FALSE)","v":0}]
[null,"B.3","TABLAROCA",null,null,null,null,0]
[null,"B.4","HERRERIA",null,null,null,null,0]
[null,"B.5","MALLA CICLON",null,null,null,null,0]
[null,"B.6","IMPERMEABILIZANTE",null,null,null,null,0]
[null,"B.7","ACABADOS",null,null,null,null,0]
[null,"B.8","INSTALACION HIDROSANITARIA",null,null,null,null,0]
[null,"B.9","MUEBLES SANITARIOS",null,null,null,null,0]
[null,"B.10","AIRE ACONDICIONADO",null,null,null,null,0]
[null,"B.11","INSTALACION ELECTRICA",null,null,null,null,0]
[null,"B.12","VOZ Y DATOS",null,null,null,null,0]
[null,"B.13",{"$f":"VLOOKUP(B240,$B$19:$H$201,2,FALSE)","v":"LIMPIEZA"},null,null,null,null,0]
[]
[]
[]
[]
[null,"IMPORTE TOTAL CON LETRA",null,null,null,"SUBTOTAL M. N.",null,{"$f":"H211+H227","v":0}]
[null,{"$f":"Enletras(H247)","v":" Pesos   0 0/100 M.N"},null,null,null,"IVA M. N.",null,{"$f":"H245*0.16","v":0}]
[null,null,null,null,null,"TOTAL M. N.",null,{"$f":"H245+H246","v":0}]